[Event "*** Titled Tuesday Blitz"]
[Site "Chess.com"]
[Date "2019.08.06"]
[Round "4"]
[White "S-Fazulyanov"]
[Black "Tiqr777"]
[Result "0-1"]
[WhiteElo "2477"]
[BlackElo "2565"]
[TimeControl "180+2"]
[EndTime "13:48:33 PDT"]
[Termination "Tiqr777 won by resignation"]

1. e4 {[%clk 0:03:01.9]} 1... c5 {[%clk 0:02:59.5]} 2. Nf3 {[%clk 0:03:02.9]}
2... a6 {[%clk 0:03:00.7]} 3. c3 {[%clk 0:03:01.4]} 3... d6 {[%clk 0:02:59.7]}
4. d4 {[%clk 0:03:02.3]} 4... cxd4 {[%clk 0:03:00.6]} 5. cxd4 {[%clk 0:03:04.2]}
5... g6 {[%clk 0:03:02.1]} 6. Nc3 {[%clk 0:03:05.4]} 6... Bg7 {[%clk 0:03:03.6]}
7. Bg5 {[%clk 0:02:57.8]} 7... Nf6 {[%clk 0:03:03.9]} 8. Qd2 {[%clk 0:02:58.7]}
8... O-O {[%clk 0:03:03.7]} 9. Bd3 {[%clk 0:02:59]} 9... Nc6 {[%clk 0:03:04.1]}
10. h3 {[%clk 0:02:58.2]} 10... e5 {[%clk 0:03:03.5]} 11. d5 {[%clk 0:02:58.3]}
11... Ne7 {[%clk 0:03:04.3]} 12. O-O {[%clk 0:02:54.7]} 12... Nd7 {[%clk
0:03:05.1]} 13. Bh6 {[%clk 0:02:54.6]} 13... f5 {[%clk 0:02:52]} 14. Bxg7 {[%clk
0:02:55.5]} 14... Kxg7 {[%clk 0:02:53.6]} 15. Ng5 {[%clk 0:02:57.4]} 15... Nc5
{[%clk 0:02:53.8]} 16. f4 {[%clk 0:02:50.1]} 16... h6 {[%clk 0:02:46.8]} 17.
Ne6+ {[%clk 0:02:36]} 17... Nxe6 {[%clk 0:02:47.2]} 18. dxe6 {[%clk 0:02:37.9]}
18... Bxe6 {[%clk 0:02:48.5]} 19. Rad1 {[%clk 0:02:34.3]} 19... Qb6+ {[%clk
0:02:47.4]} 20. Kh2 {[%clk 0:02:32.5]} 20... Rad8 {[%clk 0:02:48.4]} 21. exf5
{[%clk 0:02:31.5]} 21... gxf5 {[%clk 0:02:48.5]} 22. Rf3 {[%clk 0:02:25.7]}
22... e4 {[%clk 0:02:45.6]} 23. Rg3+ {[%clk 0:02:26.5]} 23... Kh7 {[%clk
0:02:47]} 24. Be2 {[%clk 0:02:16.7]} 24... d5 {[%clk 0:02:46]} 25. Na4 {[%clk
0:02:17.3]} 25... Qd6 {[%clk 0:02:34]} 26. Qd4 {[%clk 0:02:06.7]} 26... Rg8
{[%clk 0:02:34]} 27. Rf1 {[%clk 0:02:03.7]} 27... Rxg3 {[%clk 0:02:24.5]} 28.
Kxg3 {[%clk 0:02:05.6]} 28... Rg8+ {[%clk 0:02:22.8]} 29. Kh2 {[%clk 0:02:06.2]}
29... Nc6 {[%clk 0:02:24]} 30. Qf6 {[%clk 0:02:05]} 30... Rg6 {[%clk 0:02:22]}
31. Qh4 {[%clk 0:02:04.7]} 31... d4 {[%clk 0:02:22.7]} 32. Bh5 {[%clk
0:02:03.1]} 32... Rg7 {[%clk 0:02:23.2]} 33. Qf6 {[%clk 0:02:01.8]} 33... Qe7
{[%clk 0:01:50.3]} 34. Qxe7 {[%clk 0:02:01.1]} 34... Rxe7 {[%clk 0:01:50.6]} 35.
b3 {[%clk 0:02:00.2]} 35... d3 {[%clk 0:01:46.3]} 36. Nc5 {[%clk 0:02:00.6]}
36... Bf7 {[%clk 0:01:42.8]} 37. Bxf7 {[%clk 0:01:53.9]} 37... Rxf7 {[%clk
0:01:43.4]} 38. g4 {[%clk 0:01:55.8]} 38... b6 {[%clk 0:01:40.4]} 39. Ne6 {[%clk
0:01:50.5]} 39... e3 {[%clk 0:01:39.5]} 0-1

[Event "*** Titled Tuesday Blitz"]
[Site "Chess.com"]
[Date "2019.08.06"]
[Round "4"]
[White "dianamirza"]
[Black "Poghosyan_Suren"]
[Result "1-0"]
[WhiteElo "2341"]
[BlackElo "2461"]
[TimeControl "180+2"]
[EndTime "13:48:35 PDT"]
[Termination "dianamirza won by resignation"]

1. e4 {[%clk 0:03:01.7]} 1... e6 {[%clk 0:02:58.9]} 2. d4 {[%clk 0:02:56.9]}
2... d5 {[%clk 0:02:59.5]} 3. Nc3 {[%clk 0:02:57.9]} 3... Bb4 {[%clk 0:02:58.7]}
4. e5 {[%clk 0:02:58.9]} 4... c5 {[%clk 0:02:59.2]} 5. a3 {[%clk 0:02:56.7]}
5... Bxc3+ {[%clk 0:02:59.7]} 6. bxc3 {[%clk 0:02:58.6]} 6... Ne7 {[%clk
0:02:58.1]} 7. Qg4 {[%clk 0:03:00.1]} 7... O-O {[%clk 0:02:57.4]} 8. Bd3 {[%clk
0:02:58.9]} 8... Ng6 {[%clk 0:02:54.7]} 9. h4 {[%clk 0:02:56.7]} 9... Nc6 {[%clk
0:02:53.1]} 10. h5 {[%clk 0:02:57.4]} 10... Nge7 {[%clk 0:02:15]} 11. Bh6 {[%clk
0:02:52.1]} 11... g6 {[%clk 0:02:11.2]} 12. Bg5 {[%clk 0:02:38.5]} 12... c4
{[%clk 0:02:09.2]} 13. Be2 {[%clk 0:02:14.8]} 13... Qc7 {[%clk 0:02:05]} 14. Bf6
{[%clk 0:02:13.5]} 14... Nf5 {[%clk 0:01:43.2]} 15. Qh3 {[%clk 0:02:00.4]} 15...
b5 {[%clk 0:01:15.6]} 16. g4 {[%clk 0:01:59.5]} 16... Nfxd4 {[%clk 0:01:03.7]}
17. cxd4 {[%clk 0:01:39.3]} 17... Nxd4 {[%clk 0:00:58.9]} 18. Bd1 {[%clk
0:01:25.3]} 18... c3 {[%clk 0:00:47.4]} 19. Qe3 {[%clk 0:01:20.2]} 19... Nb3
{[%clk 0:00:31.1]} 20. Qh6 {[%clk 0:01:16.2]} 1-0

[Event "*** Titled Tuesday Blitz"]
[Site "Chess.com"]
[Date "2019.08.06"]
[Round "4"]
[White "Alexander_Donchenko"]
[Black "canwedoit"]
[Result "1-0"]
[WhiteElo "2676"]
[BlackElo "2427"]
[TimeControl "180+2"]
[EndTime "13:48:42 PDT"]
[Termination "Alexander_Donchenko won by resignation"]

1. e4 {[%clk 0:03:01.9]} 1... c5 {[%clk 0:03:00]} 2. Nf3 {[%clk 0:03:03.1]} 2...
d6 {[%clk 0:03:01]} 3. d4 {[%clk 0:03:04.4]} 3... cxd4 {[%clk 0:03:02.9]} 4.
Nxd4 {[%clk 0:03:06]} 4... Nf6 {[%clk 0:03:04.5]} 5. Nc3 {[%clk 0:03:07.7]} 5...
Nc6 {[%clk 0:03:05.8]} 6. Bg5 {[%clk 0:03:07.6]} 6... Bd7 {[%clk 0:03:06.8]} 7.
Qd2 {[%clk 0:03:06.8]} 7... Rc8 {[%clk 0:03:07.5]} 8. O-O-O {[%clk 0:03:06.8]}
8... Nxd4 {[%clk 0:03:08.7]} 9. Qxd4 {[%clk 0:03:07.9]} 9... Qa5 {[%clk
0:03:10]} 10. Bd2 {[%clk 0:03:04.8]} 10... a6 {[%clk 0:03:07.1]} 11. Kb1 {[%clk
0:03:04.4]} 11... Qc5 {[%clk 0:03:07.8]} 12. Qxc5 {[%clk 0:03:03.5]} 12... Rxc5
{[%clk 0:03:09.7]} 13. f3 {[%clk 0:03:02.4]} 13... g6 {[%clk 0:03:06.8]} 14. Be3
{[%clk 0:03:01]} 14... Rc8 {[%clk 0:03:05.5]} 15. Bd4 {[%clk 0:02:58.6]} 15...
Bg7 {[%clk 0:03:06.3]} 16. Nd5 {[%clk 0:02:59.7]} 16... Be6 {[%clk 0:02:45.2]}
17. Nxf6+ {[%clk 0:02:56.5]} 17... exf6 {[%clk 0:02:46.7]} 18. Be2 {[%clk
0:02:48.6]} 18... Ke7 {[%clk 0:02:44.4]} 19. Bc3 {[%clk 0:02:42.5]} 19... Rhd8
{[%clk 0:02:43.4]} 20. a3 {[%clk 0:02:35.6]} 20... Bh6 {[%clk 0:02:37.8]} 21.
Ba5 {[%clk 0:02:28.1]} 21... Rd7 {[%clk 0:02:38]} 22. h4 {[%clk 0:02:26.4]}
22... f5 {[%clk 0:02:32.5]} 23. exf5 {[%clk 0:02:21.5]} 23... Bxf5 {[%clk
0:02:31.3]} 24. Bd3 {[%clk 0:02:22.9]} 24... Bxd3 {[%clk 0:02:27.7]} 25. Rxd3
{[%clk 0:02:24.8]} 25... Bf4 {[%clk 0:02:22.6]} 26. h5 {[%clk 0:02:24.4]} 26...
g5 {[%clk 0:02:12.1]} 27. Bc3 {[%clk 0:02:19.1]} 27... Rc4 {[%clk 0:02:07.3]}
28. Re1+ {[%clk 0:02:17.5]} 28... Kd8 {[%clk 0:01:57.4]} 29. Bf6+ {[%clk
0:02:12.9]} 29... Kc7 {[%clk 0:01:58.3]} 30. Re8 {[%clk 0:02:09.8]} 30... Be5
{[%clk 0:01:40.3]} 31. Bxe5 {[%clk 0:01:53.5]} 31... dxe5 {[%clk 0:01:42.2]} 32.
Rxe5 {[%clk 0:01:54.6]} 32... h6 {[%clk 0:01:34.2]} 33. Rf5 {[%clk 0:01:51.9]}
33... Rf4 {[%clk 0:01:14]} 34. Rxf4 {[%clk 0:01:44.9]} 34... gxf4 {[%clk
0:01:13]} 35. Rxd7+ {[%clk 0:01:44.8]} 35... Kxd7 {[%clk 0:01:14.9]} 36. c4
{[%clk 0:01:45.9]} 36... Ke6 {[%clk 0:01:07.5]} 37. Kc2 {[%clk 0:01:46]} 37...
Kf5 {[%clk 0:01:06.7]} 38. Kd3 {[%clk 0:01:46.4]} 38... Kg5 {[%clk 0:01:06.4]}
39. Ke4 {[%clk 0:01:47.5]} 39... Kxh5 {[%clk 0:01:08.3]} 40. Kxf4 {[%clk
0:01:48.4]} 40... Kg6 {[%clk 0:01:07.9]} 41. Ke5 {[%clk 0:01:47.9]} 41... h5
{[%clk 0:01:08.5]} 42. b4 {[%clk 0:01:48.1]} 1-0

[Event "*** Titled Tuesday Blitz"]
[Site "Chess.com"]
[Date "2019.08.06"]
[Round "4"]
[White "ArnaudovP"]
[Black "KhazarBabazada"]
[Result "1-0"]
[WhiteElo "2664"]
[BlackElo "2819"]
[TimeControl "180+2"]
[EndTime "13:48:55 PDT"]
[Termination "ArnaudovP won by resignation"]

1. Nf3 {[%clk 0:03:01.9]} 1... Nf6 {[%clk 0:03:01.9]} 2. c4 {[%clk 0:02:57.3]}
2... g6 {[%clk 0:03:01.9]} 3. Nc3 {[%clk 0:02:57.9]} 3... d5 {[%clk 0:03:02.5]}
4. d4 {[%clk 0:02:56.7]} 4... Bg7 {[%clk 0:03:02.1]} 5. h4 {[%clk 0:02:57.4]}
5... c6 {[%clk 0:02:58.2]} 6. cxd5 {[%clk 0:02:56.6]} 6... cxd5 {[%clk 0:02:59]}
7. Bg5 {[%clk 0:02:51.4]} 7... O-O {[%clk 0:02:59.7]} 8. e3 {[%clk 0:02:51.8]}
8... Nc6 {[%clk 0:02:57.3]} 9. Be2 {[%clk 0:02:50.1]} 9... Ne4 {[%clk
0:02:54.3]} 10. O-O {[%clk 0:02:48.8]} 10... Bg4 {[%clk 0:02:41]} 11. Nxe4
{[%clk 0:02:46]} 11... dxe4 {[%clk 0:02:42.9]} 12. Nd2 {[%clk 0:02:46.4]} 12...
Bxe2 {[%clk 0:02:43.7]} 13. Qxe2 {[%clk 0:02:46]} 13... Qd5 {[%clk 0:02:43.4]}
14. Rfc1 {[%clk 0:02:43]} 14... b6 {[%clk 0:02:40.9]} 15. Qc4 {[%clk 0:02:42.8]}
15... Qxc4 {[%clk 0:02:38.1]} 16. Rxc4 {[%clk 0:02:43.3]} 16... Na5 {[%clk
0:02:38.3]} 17. Rc7 {[%clk 0:02:43.7]} 17... Rfc8 {[%clk 0:02:31.5]} 18. Rac1
{[%clk 0:02:43.5]} 18... Rxc7 {[%clk 0:02:16.1]} 19. Rxc7 {[%clk 0:02:43.5]}
19... f6 {[%clk 0:02:18]} 20. Bf4 {[%clk 0:02:41.7]} 20... b5 {[%clk 0:02:06.6]}
21. b4 {[%clk 0:02:27.4]} 21... Nc4 {[%clk 0:02:05.3]} 22. Nxc4 {[%clk
0:02:28.2]} 22... bxc4 {[%clk 0:02:02.9]} 23. Rxc4 {[%clk 0:02:28.8]} 23... f5
{[%clk 0:02:00.9]} 24. b5 {[%clk 0:02:27.4]} 24... Kf7 {[%clk 0:01:58.9]} 25. a4
{[%clk 0:02:27.1]} 25... Ke6 {[%clk 0:01:55]} 26. Rc6+ {[%clk 0:02:27.3]} 26...
Kd7 {[%clk 0:01:36.2]} 27. Ra6 {[%clk 0:02:27.9]} 27... Kc8 {[%clk 0:01:33]} 28.
Bg5 {[%clk 0:02:20.2]} 28... e5 {[%clk 0:01:23]} 29. d5 {[%clk 0:02:20.6]} 29...
Bf8 {[%clk 0:01:02]} 30. d6 {[%clk 0:02:16.3]} 30... Kd7 {[%clk 0:00:56.6]} 31.
b6 {[%clk 0:02:15.2]} 31... Rb8 {[%clk 0:00:52.6]} 32. Rxa7+ {[%clk 0:02:12]}
32... Kxd6 {[%clk 0:00:50.5]} 33. a5 {[%clk 0:02:12.9]} 33... Kc6 {[%clk
0:00:48.9]} 34. Be7 {[%clk 0:02:08.2]} 34... Bxe7 {[%clk 0:00:37.7]} 35. Rxe7
{[%clk 0:02:08.2]} 35... Kb5 {[%clk 0:00:39.6]} 36. Rxe5+ {[%clk 0:02:08.6]}
36... Ka6 {[%clk 0:00:39.9]} 37. Kh2 {[%clk 0:02:07.4]} 37... Re8 {[%clk
0:00:34.6]} 38. Rxe8 {[%clk 0:02:06.4]} 1-0

[Event "*** Titled Tuesday Blitz"]
[Site "Chess.com"]
[Date "2019.08.06"]
[Round "4"]
[White "minnesotachessmaster"]
[Black "CMS13"]
[Result "0-1"]
[WhiteElo "1924"]
[BlackElo "1998"]
[TimeControl "180+2"]
[EndTime "13:48:59 PDT"]
[Termination "CMS13 won by resignation"]

1. e4 {[%clk 0:03:01.6]} 1... e5 {[%clk 0:02:58.3]} 2. Nf3 {[%clk 0:03:01.7]}
2... Nc6 {[%clk 0:02:59.1]} 3. Bb5 {[%clk 0:03:02]} 3... a6 {[%clk 0:02:59.3]}
4. Ba4 {[%clk 0:03:02.3]} 4... Nf6 {[%clk 0:03:00.2]} 5. O-O {[%clk 0:03:02]}
5... d6 {[%clk 0:03:01.1]} 6. d4 {[%clk 0:03:02.2]} 6... b5 {[%clk 0:02:52.6]}
7. dxe5 {[%clk 0:02:57.9]} 7... Nxe5 {[%clk 0:02:26.1]} 8. Nxe5 {[%clk
0:02:56.5]} 8... dxe5 {[%clk 0:02:26.6]} 9. Qxd8+ {[%clk 0:02:55.8]} 9... Kxd8
{[%clk 0:02:27.9]} 10. Bb3 {[%clk 0:02:56.7]} 10... Ke8 {[%clk 0:02:26.4]} 11.
Bg5 {[%clk 0:02:55.7]} 11... Bd6 {[%clk 0:02:23.9]} 12. Bxf6 {[%clk 0:02:54.6]}
12... gxf6 {[%clk 0:02:24.7]} 13. Nc3 {[%clk 0:02:54.8]} 13... c6 {[%clk
0:02:19.7]} 14. Rad1 {[%clk 0:02:54.2]} 14... Ke7 {[%clk 0:02:20.5]} 15. a3
{[%clk 0:02:45.2]} 15... Be6 {[%clk 0:01:57.7]} 16. Rd3 {[%clk 0:02:37.6]} 16...
Bxb3 {[%clk 0:01:55.3]} 17. cxb3 {[%clk 0:02:38]} 17... Rad8 {[%clk 0:01:54]}
18. Ne2 {[%clk 0:02:35]} 18... Bc7 {[%clk 0:01:48.4]} 19. Rfd1 {[%clk 0:02:31]}
19... Ke6 {[%clk 0:01:29.8]} 20. Ng3 {[%clk 0:02:10.9]} 20... Rxd3 {[%clk
0:01:30.1]} 21. Rxd3 {[%clk 0:02:11.1]} 21... Rd8 {[%clk 0:01:31.1]} 22. Rxd8
{[%clk 0:01:56.8]} 22... Bxd8 {[%clk 0:01:33]} 23. Kf1 {[%clk 0:01:57.3]} 23...
Bb6 {[%clk 0:01:29.9]} 24. Ne2 {[%clk 0:01:57]} 24... Bd4 {[%clk 0:00:51.3]} 25.
Nxd4+ {[%clk 0:01:55.6]} 25... exd4 {[%clk 0:00:52.7]} 26. Ke2 {[%clk
0:01:50.9]} 26... Ke5 {[%clk 0:00:53.4]} 27. Kd3 {[%clk 0:01:51.2]} 27... c5
{[%clk 0:00:54.6]} 28. g3 {[%clk 0:01:50.9]} 28... f5 {[%clk 0:00:51.1]} 29. f4+
{[%clk 0:01:51.2]} 29... Ke6 {[%clk 0:00:52.1]} 30. e5 {[%clk 0:01:45.2]} 30...
a5 {[%clk 0:00:46.7]} 31. b4 {[%clk 0:01:43.9]} 31... axb4 {[%clk 0:00:45.8]}
32. axb4 {[%clk 0:01:44.3]} 32... Kd5 {[%clk 0:00:46.6]} 33. bxc5 {[%clk
0:01:43.4]} 33... Kxc5 {[%clk 0:00:48]} 34. h3 {[%clk 0:01:41.4]} 34... h5
{[%clk 0:00:45.6]} 0-1

[Event "*** Titled Tuesday Blitz"]
[Site "Chess.com"]
[Date "2019.08.06"]
[Round "4"]
[White "Witaliss"]
[Black "tonyq11"]
[Result "1-0"]
[WhiteElo "2392"]
[BlackElo "2212"]
[TimeControl "180+2"]
[EndTime "13:49:05 PDT"]
[Termination "Witaliss won by resignation"]

1. d4 {[%clk 0:03:01.9]} 1... d5 {[%clk 0:02:59.8]} 2. c4 {[%clk 0:03:02.4]}
2... e6 {[%clk 0:03:00.8]} 3. Nc3 {[%clk 0:03:02.6]} 3... Nf6 {[%clk 0:03:02.1]}
4. cxd5 {[%clk 0:03:03.1]} 4... exd5 {[%clk 0:03:04]} 5. Bg5 {[%clk 0:03:03.7]}
5... Be7 {[%clk 0:03:05.4]} 6. e3 {[%clk 0:03:04.5]} 6... c6 {[%clk 0:03:06.7]}
7. Bd3 {[%clk 0:03:04.9]} 7... O-O {[%clk 0:03:08.1]} 8. Qc2 {[%clk 0:03:05.5]}
8... Nbd7 {[%clk 0:03:09.5]} 9. Nf3 {[%clk 0:03:05.6]} 9... Re8 {[%clk
0:03:07.2]} 10. h3 {[%clk 0:03:05.8]} 10... h6 {[%clk 0:03:05.1]} 11. Bf4 {[%clk
0:03:05.7]} 11... Nf8 {[%clk 0:03:02.4]} 12. O-O-O {[%clk 0:03:03.9]} 12... Ne6
{[%clk 0:02:57.1]} 13. Bh2 {[%clk 0:03:03.1]} 13... a5 {[%clk 0:02:56.1]} 14. g4
{[%clk 0:03:01.5]} 14... b5 {[%clk 0:02:47.8]} 15. Ne5 {[%clk 0:03:01.6]} 15...
Bd7 {[%clk 0:02:42.5]} 16. f4 {[%clk 0:03:01.5]} 16... a4 {[%clk 0:02:32.3]} 17.
f5 {[%clk 0:03:01.7]} 17... Nf8 {[%clk 0:02:27.9]} 18. h4 {[%clk 0:02:58]} 18...
b4 {[%clk 0:01:24.1]} 19. Nxa4 {[%clk 0:02:57.3]} 19... Ne4 {[%clk 0:01:15.4]}
20. Bxe4 {[%clk 0:02:50]} 20... dxe4 {[%clk 0:01:16.5]} 21. Kb1 {[%clk
0:02:48.8]} 21... Qa5 {[%clk 0:01:15.5]} 22. b3 {[%clk 0:02:49]} 22... c5 {[%clk
0:00:59.1]} 23. Nxc5 {[%clk 0:02:33.5]} 23... Bxc5 {[%clk 0:00:58.4]} 24. dxc5
{[%clk 0:02:34.2]} 24... Bb5 {[%clk 0:00:55]} 25. Rd2 {[%clk 0:02:31.5]} 25...
Rxe5 {[%clk 0:00:30.3]} 26. Bxe5 {[%clk 0:02:31.4]} 26... Bd3 {[%clk 0:00:31.6]}
27. Rxd3 {[%clk 0:02:32.6]} 27... exd3 {[%clk 0:00:32.9]} 28. Qd2 {[%clk
0:02:33.8]} 28... Qxc5 {[%clk 0:00:21.7]} 29. Bd4 {[%clk 0:02:34.5]} 29... Qc2+
{[%clk 0:00:19.2]} 30. Qxc2 {[%clk 0:02:34.3]} 30... dxc2+ {[%clk 0:00:21.1]}
31. Kb2 {[%clk 0:02:34.4]} 31... Nd7 {[%clk 0:00:20.1]} 32. Rc1 {[%clk
0:02:34.1]} 32... g6 {[%clk 0:00:19.3]} 33. Rxc2 {[%clk 0:02:32.7]} 33... gxf5
{[%clk 0:00:20.6]} 34. gxf5 {[%clk 0:02:33.7]} 34... f6 {[%clk 0:00:16.9]} 35.
Rc7 {[%clk 0:02:33.5]} 35... Ne5 {[%clk 0:00:18.2]} 36. Bxe5 {[%clk 0:02:29.6]}
36... fxe5 {[%clk 0:00:19.3]} 37. Re7 {[%clk 0:02:30.6]} 37... Ra5 {[%clk
0:00:19]} 38. h5 {[%clk 0:02:30]} 38... Rc5 {[%clk 0:00:17]} 39. e4 {[%clk
0:02:27.5]} 39... Ra5 {[%clk 0:00:15.6]} 40. Rb7 {[%clk 0:02:27.3]} 40... Rc5
{[%clk 0:00:13]} 41. Rxb4 {[%clk 0:02:27.9]} 41... Kf7 {[%clk 0:00:14.6]} 42.
Rb6 {[%clk 0:02:28.7]} 1-0

[Event "*** Titled Tuesday Blitz"]
[Site "Chess.com"]
[Date "2019.08.06"]
[Round "4"]
[White "ChrisTool2"]
[Black "tteshan"]
[Result "1-0"]
[WhiteElo "2283"]
[BlackElo "2181"]
[TimeControl "180+2"]
[EndTime "13:49:07 PDT"]
[Termination "ChrisTool2 won by checkmate"]

1. d4 {[%clk 0:03:01.9]} 1... Nf6 {[%clk 0:03:00.1]} 2. c4 {[%clk 0:03:03.1]}
2... e6 {[%clk 0:03:01.4]} 3. Nf3 {[%clk 0:03:03.2]} 3... b6 {[%clk 0:03:00.2]}
4. a3 {[%clk 0:03:03]} 4... Bb7 {[%clk 0:03:01.3]} 5. Nc3 {[%clk 0:03:02.6]}
5... Be7 {[%clk 0:02:59.4]} 6. Qc2 {[%clk 0:02:57.9]} 6... d6 {[%clk 0:03:00]}
7. g3 {[%clk 0:02:47.3]} 7... Nbd7 {[%clk 0:03:00.3]} 8. Bg2 {[%clk 0:02:48.6]}
8... c5 {[%clk 0:03:00.3]} 9. d5 {[%clk 0:02:30.5]} 9... exd5 {[%clk 0:03:00.2]}
10. Nh4 {[%clk 0:02:31]} 10... Ne4 {[%clk 0:02:32.4]} 11. Nf5 {[%clk 0:02:12.2]}
11... Nxc3 {[%clk 0:02:28.1]} 12. Nxg7+ {[%clk 0:02:03.8]} 12... Kf8 {[%clk
0:02:26.3]} 13. Bh6 {[%clk 0:02:05.7]} 13... Kg8 {[%clk 0:02:21.9]} 14. bxc3
{[%clk 0:01:43.3]} 14... Bf6 {[%clk 0:02:10.4]} 15. Nf5 {[%clk 0:01:41.1]} 15...
Ne5 {[%clk 0:02:00.6]} 16. cxd5 {[%clk 0:01:42]} 16... Ng4 {[%clk 0:01:52.4]}
17. Bf4 {[%clk 0:01:40.5]} 17... Be5 {[%clk 0:01:47.1]} 18. Bf3 {[%clk 0:01:37]}
18... Bxf4 {[%clk 0:01:42.5]} 19. gxf4 {[%clk 0:01:37.6]} 19... Nf6 {[%clk
0:01:37.3]} 20. Rg1+ {[%clk 0:01:28.6]} 20... Kf8 {[%clk 0:01:38.4]} 21. O-O-O
{[%clk 0:01:24.7]} 21... Rg8 {[%clk 0:01:25.3]} 22. Rxg8+ {[%clk 0:01:19]} 22...
Kxg8 {[%clk 0:01:27.2]} 23. Rg1+ {[%clk 0:01:17]} 23... Kf8 {[%clk 0:01:27.3]}
24. e4 {[%clk 0:01:14.4]} 24... Qd7 {[%clk 0:01:19.7]} 25. c4 {[%clk 0:01:03.9]}
25... a6 {[%clk 0:01:13]} 26. Qb2 {[%clk 0:00:59.9]} 26... Qd8 {[%clk 0:01:13]}
27. e5 {[%clk 0:00:58.5]} 27... dxe5 {[%clk 0:01:14]} 28. fxe5 {[%clk
0:01:00.4]} 28... Ng8 {[%clk 0:00:45.3]} 29. e6 {[%clk 0:00:56.2]} 29... fxe6
{[%clk 0:00:46.3]} 30. Rxg8+ {[%clk 0:00:55.8]} 30... Kxg8 {[%clk 0:00:47.3]}
31. Qg7# {[%clk 0:00:56.4]} 1-0

[Event "*** Titled Tuesday Blitz"]
[Site "Chess.com"]
[Date "2019.08.06"]
[Round "4"]
[White "dawtonlms"]
[Black "Ravan_02"]
[Result "0-1"]
[WhiteElo "2417"]
[BlackElo "2604"]
[TimeControl "180+2"]
[EndTime "13:49:12 PDT"]
[Termination "Ravan_02 won on time"]

1. e4 {[%clk 0:03:01.6]} 1... e5 {[%clk 0:03:00]} 2. Nf3 {[%clk 0:03:02.6]} 2...
Nc6 {[%clk 0:03:01.3]} 3. d4 {[%clk 0:03:03.5]} 3... exd4 {[%clk 0:03:01.8]} 4.
Bc4 {[%clk 0:03:04.6]} 4... Nf6 {[%clk 0:03:01.3]} 5. e5 {[%clk 0:03:06.1]} 5...
d5 {[%clk 0:03:02.3]} 6. Bb5 {[%clk 0:03:07.3]} 6... Ne4 {[%clk 0:03:02.5]} 7.
Nxd4 {[%clk 0:03:08.7]} 7... Bd7 {[%clk 0:03:03.8]} 8. Bxc6 {[%clk 0:03:09.7]}
8... bxc6 {[%clk 0:03:05.7]} 9. O-O {[%clk 0:03:10.7]} 9... Be7 {[%clk
0:03:04.7]} 10. f3 {[%clk 0:03:11.5]} 10... Nc5 {[%clk 0:03:05.2]} 11. f4 {[%clk
0:03:13]} 11... f5 {[%clk 0:02:42.3]} 12. exf6 {[%clk 0:03:08.2]} 12... Bxf6
{[%clk 0:02:42.9]} 13. Re1+ {[%clk 0:03:07.8]} 13... Kf7 {[%clk 0:02:43.3]} 14.
f5 {[%clk 0:03:05.2]} 14... Re8 {[%clk 0:02:42.8]} 15. Rf1 {[%clk 0:02:50.9]}
15... Kg8 {[%clk 0:02:43.2]} 16. Nc3 {[%clk 0:02:51.4]} 16... Qb8 {[%clk
0:02:38.6]} 17. Kh1 {[%clk 0:02:48.5]} 17... Qb4 {[%clk 0:02:37.3]} 18. Nde2
{[%clk 0:02:24.8]} 18... Qh4 {[%clk 0:02:35.8]} 19. Bf4 {[%clk 0:02:22.7]} 19...
Bxf5 {[%clk 0:02:25.8]} 20. Bg3 {[%clk 0:02:17.9]} 20... Qh5 {[%clk 0:02:24]}
21. Qd2 {[%clk 0:02:01.6]} 21... Ne4 {[%clk 0:01:52.2]} 22. Qf4 {[%clk
0:01:06.4]} 22... Bg4 {[%clk 0:01:38]} 23. Ng1 {[%clk 0:00:59.1]} 23... Be5
{[%clk 0:01:21.9]} 0-1

[Event "*** Titled Tuesday Blitz"]
[Site "Chess.com"]
[Date "2019.08.06"]
[Round "4"]
[White "MFguimaraes"]
[Black "Hanging_pointer"]
[Result "0-1"]
[WhiteElo "2272"]
[BlackElo "2483"]
[TimeControl "180+2"]
[EndTime "13:49:15 PDT"]
[Termination "Hanging_pointer won by resignation"]

1. e4 {[%clk 0:03:01.9]} 1... c5 {[%clk 0:03:00.8]} 2. f4 {[%clk 0:02:55.7]}
2... d5 {[%clk 0:02:59.1]} 3. Nc3 {[%clk 0:02:54.2]} 3... Nf6 {[%clk 0:02:42.5]}
4. e5 {[%clk 0:02:48.8]} 4... d4 {[%clk 0:02:43.6]} 5. exf6 {[%clk 0:02:48.9]}
5... dxc3 {[%clk 0:02:44.7]} 6. fxg7 {[%clk 0:02:44.7]} 6... cxd2+ {[%clk
0:02:45.8]} 7. Qxd2 {[%clk 0:02:45.8]} 7... Qxd2+ {[%clk 0:02:45.6]} 8. Bxd2
{[%clk 0:02:47.1]} 8... Bxg7 {[%clk 0:02:47.5]} 9. O-O-O {[%clk 0:02:45.8]} 9...
Nc6 {[%clk 0:02:46.6]} 10. Bb5 {[%clk 0:02:45.8]} 10... Bd7 {[%clk 0:02:47.5]}
11. Nf3 {[%clk 0:02:47.2]} 11... a6 {[%clk 0:02:36.4]} 12. Bxc6 {[%clk
0:02:36.8]} 12... Bxc6 {[%clk 0:02:38.3]} 13. Ne5 {[%clk 0:02:38.3]} 13... Bxe5
{[%clk 0:02:20.6]} 14. fxe5 {[%clk 0:02:40.2]} 14... Bxg2 {[%clk 0:02:21.6]} 15.
Rhg1 {[%clk 0:02:40.3]} 15... Be4 {[%clk 0:02:22.6]} 16. Rde1 {[%clk 0:02:35.5]}
16... Bg6 {[%clk 0:02:15.1]} 17. e6 {[%clk 0:02:33.6]} 17... f6 {[%clk
0:01:12.1]} 18. Ba5 {[%clk 0:02:25.1]} 18... Rb8 {[%clk 0:00:45.1]} 19. Bb6
{[%clk 0:02:20.1]} 19... Rc8 {[%clk 0:00:46.2]} 20. Rd1 {[%clk 0:02:20.6]} 20...
O-O {[%clk 0:00:47.3]} 21. Rd7 {[%clk 0:02:21.1]} 21... Rc6 {[%clk 0:00:43.3]}
22. Rxb7 {[%clk 0:02:12.9]} 22... Rxe6 {[%clk 0:00:43.6]} 23. Bxc5 {[%clk
0:01:52.1]} 23... Rc8 {[%clk 0:00:42.8]} 24. Rxe7 {[%clk 0:01:45.7]} 24... Rxe7
{[%clk 0:00:34.7]} 25. Bxe7 {[%clk 0:01:46.2]} 25... Rxc2+ {[%clk 0:00:33.9]}
26. Kd1 {[%clk 0:01:47.6]} 26... Rxb2 {[%clk 0:00:29.3]} 27. Bxf6 {[%clk
0:01:48]} 27... Rb1+ {[%clk 0:00:28.7]} 0-1